[Event "*** Titled Tuesday Blitz"]
[Site "Chess.com"]
[Date "2020.04.07"]
[Round "8"]
[White "Tjktiger"]
[Black "anon132639"]
[Result "0-1"]
[WhiteElo "2846"]
[BlackElo "2670"]
[TimeControl "180+1"]
[EndTime "14:35:25 PDT"]
[Termination "anon132639 won by resignation"]

1. c4 {[%clk 0:03:00.9]} 1... g6 {[%clk 0:03:00]} 2. Nc3 {[%clk 0:03:00.9]} 2...
Bg7 {[%clk 0:03:00.6]} 3. d4 {[%clk 0:03:01.2]} 3... Nf6 {[%clk 0:03:01.1]} 4.
g3 {[%clk 0:03:01.3]} 4... O-O {[%clk 0:03:01.5]} 5. Bg2 {[%clk 0:03:01.4]} 5...
d6 {[%clk 0:03:02.2]} 6. Nf3 {[%clk 0:03:02]} 6... Nc6 {[%clk 0:03:02.9]} 7. O-O
{[%clk 0:03:02.5]} 7... e5 {[%clk 0:03:03.5]} 8. dxe5 {[%clk 0:03:02.9]} 8...
dxe5 {[%clk 0:03:04.4]} 9. Bg5 {[%clk 0:03:02]} 9... Be6 {[%clk 0:03:04.5]} 10.
Nd2 {[%clk 0:03:02.1]} 10... Qc8 {[%clk 0:02:53.6]} 11. Nd5 {[%clk 0:02:51.6]}
11... Nd7 {[%clk 0:02:42.5]} 12. Qa4 {[%clk 0:02:51.2]} 12... Re8 {[%clk
0:02:27.8]} 13. b4 {[%clk 0:02:45.2]} 13... f6 {[%clk 0:02:20.2]} 14. Be3 {[%clk
0:02:43.8]} 14... Nb6 {[%clk 0:02:14.8]} 15. Qd1 {[%clk 0:02:13]} 15... f5
{[%clk 0:01:52.7]} 16. b5 {[%clk 0:01:55.4]} 16... Nd4 {[%clk 0:01:42]} 17. Rc1
{[%clk 0:01:45]} 17... Qd7 {[%clk 0:01:18.2]} 18. Bxd4 {[%clk 0:01:22.3]} 18...
exd4 {[%clk 0:01:16.9]} 19. Nb3 {[%clk 0:01:22.6]} 19... Nxd5 {[%clk 0:01:08.4]}
20. Nc5 {[%clk 0:01:17.6]} 20... Qf7 {[%clk 0:00:55.9]} 21. Nxe6 {[%clk
0:01:09.2]} 21... Nc3 {[%clk 0:00:56.1]} 22. Rxc3 {[%clk 0:01:06.5]} 22... dxc3
{[%clk 0:00:57]} 23. Ng5 {[%clk 0:01:04.2]} 23... Qe7 {[%clk 0:00:41.3]} 24.
Bxb7 {[%clk 0:00:50.8]} 24... Rad8 {[%clk 0:00:40.5]} 25. Bd5+ {[%clk
0:00:48.2]} 25... Kh8 {[%clk 0:00:40.6]} 26. Qc1 {[%clk 0:00:20.3]} 26... Rxd5
{[%clk 0:00:21.5]} 27. cxd5 {[%clk 0:00:21.2]} 27... Qxe2 {[%clk 0:00:20.4]} 28.
Ne6 {[%clk 0:00:21.5]} 28... Qd2 {[%clk 0:00:17.6]} 29. Rd1 {[%clk 0:00:10.1]}
29... Qxc1 {[%clk 0:00:15.5]} 30. Rxc1 {[%clk 0:00:11]} 30... Be5 {[%clk
0:00:16.2]} 31. f4 {[%clk 0:00:11]} 31... Bf6 {[%clk 0:00:14.5]} 32. a4 {[%clk
0:00:10.5]} 32... Re7 {[%clk 0:00:12.6]} 33. Kf1 {[%clk 0:00:07]} 33... Rd7
{[%clk 0:00:12.9]} 34. Ke2 {[%clk 0:00:06.6]} 34... Rxd5 {[%clk 0:00:12.8]} 35.
Nxc7 {[%clk 0:00:06.9]} 35... Rd2+ {[%clk 0:00:13.3]} 36. Kf3 {[%clk 0:00:06.8]}
36... c2 {[%clk 0:00:12.5]} 37. a5 {[%clk 0:00:05.5]} 37... Bb2 {[%clk
0:00:11.9]} 38. b6 {[%clk 0:00:04.1]} 38... axb6 {[%clk 0:00:12.1]} 39. axb6
{[%clk 0:00:03.3]} 39... Bxc1 {[%clk 0:00:12.2]} 40. b7 {[%clk 0:00:03.4]} 40...
Rd8 {[%clk 0:00:12.7]} 41. Ne6 {[%clk 0:00:03.2]} 41... Rb8 {[%clk 0:00:11.9]}
42. Nd4 {[%clk 0:00:04.1]} 42... Rxb7 {[%clk 0:00:12]} 43. Nxc2 {[%clk 0:00:05]}
43... Rb3+ {[%clk 0:00:12.5]} 44. Ke2 {[%clk 0:00:05]} 44... Rb2 {[%clk
0:00:12.2]} 45. Kd3 {[%clk 0:00:05.9]} 45... Rxc2 {[%clk 0:00:12.9]} 46. Kxc2
{[%clk 0:00:06.8]} 46... Ba3 {[%clk 0:00:13.8]} 47. Kd3 {[%clk 0:00:07.7]} 47...
Be7 {[%clk 0:00:14.3]} 48. Ke2 {[%clk 0:00:08.6]} 48... Kg7 {[%clk 0:00:15.2]}
49. Kf3 {[%clk 0:00:09.5]} 49... Kf6 {[%clk 0:00:15.8]} 50. h3 {[%clk
0:00:10.4]} 50... Bd6 {[%clk 0:00:14.6]} 51. g4 {[%clk 0:00:11.3]} 51... fxg4+
{[%clk 0:00:12.8]} 52. hxg4 {[%clk 0:00:12.2]} 52... h6 {[%clk 0:00:08.7]} 53.
Ke4 {[%clk 0:00:12]} 53... g5 {[%clk 0:00:07]} 54. fxg5+ {[%clk 0:00:07.3]}
54... hxg5 {[%clk 0:00:07.9]} 55. Kd5 {[%clk 0:00:08.1]} 55... Bh2 {[%clk
0:00:07]} 56. Ke4 {[%clk 0:00:07.4]} 56... Ke6 {[%clk 0:00:07.4]} 57. Kd4 {[%clk
0:00:08.3]} 57... Bg1+ {[%clk 0:00:06.6]} 58. Ke4 {[%clk 0:00:09.2]} 58... Ba7
{[%clk 0:00:07.2]} 59. Kf3 {[%clk 0:00:09.2]} 59... Ke5 {[%clk 0:00:07.8]} 60.
Kg3 {[%clk 0:00:10.1]} 60... Ke4 {[%clk 0:00:08.3]} 0-1

[Event "*** Titled Tuesday Blitz"]
[Site "Chess.com"]
[Date "2020.04.07"]
[Round "8"]
[White "attack2mateU"]
[Black "Msb2"]
[Result "1/2-1/2"]
[WhiteElo "2676"]
[BlackElo "2910"]
[TimeControl "180+1"]
[EndTime "14:35:26 PDT"]
[Termination "Game drawn by repetition"]

1. e4 {[%clk 0:03:00.9]} 1... e6 {[%clk 0:03:00.2]} 2. d4 {[%clk 0:02:59.7]}
2... d5 {[%clk 0:03:01.1]} 3. Nc3 {[%clk 0:02:59.1]} 3... Nf6 {[%clk 0:03:01.1]}
4. e5 {[%clk 0:02:58.9]} 4... Nfd7 {[%clk 0:03:01.5]} 5. f4 {[%clk 0:02:59]}
5... c5 {[%clk 0:03:01.9]} 6. Nf3 {[%clk 0:02:59.7]} 6... Nc6 {[%clk 0:03:02.6]}
7. Be3 {[%clk 0:03:00.3]} 7... a6 {[%clk 0:03:03.3]} 8. Qd2 {[%clk 0:03:00]}
8... b5 {[%clk 0:03:02.6]} 9. dxc5 {[%clk 0:02:56.7]} 9... Bxc5 {[%clk
0:03:03.5]} 10. Bd3 {[%clk 0:02:54.3]} 10... Qb6 {[%clk 0:03:03.5]} 11. Bf2
{[%clk 0:02:54.2]} 11... h6 {[%clk 0:03:03.9]} 12. O-O {[%clk 0:02:53.3]} 12...
Bb7 {[%clk 0:03:04.4]} 13. Rae1 {[%clk 0:02:50.2]} 13... Bxf2+ {[%clk
0:03:03.3]} 14. Rxf2 {[%clk 0:02:49.4]} 14... Nc5 {[%clk 0:02:56]} 15. a3 {[%clk
0:02:36.2]} 15... Rd8 {[%clk 0:02:53.5]} 16. b4 {[%clk 0:02:31.9]} 16... Nxb4
{[%clk 0:02:52.4]} 17. axb4 {[%clk 0:02:30.3]} 17... Ne4 {[%clk 0:02:52.6]} 18.
Bxe4 {[%clk 0:01:19.9]} 18... dxe4 {[%clk 0:02:53.5]} 19. Qe3 {[%clk 0:01:19.8]}
19... Qxe3 {[%clk 0:02:52.9]} 20. Rxe3 {[%clk 0:01:20.7]} 20... exf3 {[%clk
0:02:53.5]} 21. gxf3 {[%clk 0:01:16.3]} 21... Ke7 {[%clk 0:02:25.1]} 22. Ne4
{[%clk 0:01:14.4]} 22... Rd1+ {[%clk 0:02:04.4]} 23. Rf1 {[%clk 0:01:02.1]}
23... Rxf1+ {[%clk 0:01:58.2]} 24. Kxf1 {[%clk 0:01:03]} 24... Bxe4 {[%clk
0:01:41.6]} 25. fxe4 {[%clk 0:01:03.9]} 25... Rc8 {[%clk 0:01:39.3]} 26. c3
{[%clk 0:00:45.7]} 26... g5 {[%clk 0:01:34.3]} 27. f5 {[%clk 0:00:43.3]} 27...
f6 {[%clk 0:01:28.4]} 28. Rh3 {[%clk 0:00:28.6]} 28... exf5 {[%clk 0:00:57]} 29.
Rxh6 {[%clk 0:00:26.7]} 29... fxe5 {[%clk 0:00:50.4]} 30. exf5 {[%clk
0:00:26.6]} 30... Rxc3 {[%clk 0:00:50.4]} 31. Rxa6 {[%clk 0:00:25.7]} 31... Rf3+
{[%clk 0:00:45.6]} 32. Ke2 {[%clk 0:00:24.6]} 32... Rxf5 {[%clk 0:00:46.5]} 33.
Rb6 {[%clk 0:00:21.8]} 33... Rf4 {[%clk 0:00:36]} 34. Rxb5 {[%clk 0:00:20.2]}
34... Ke6 {[%clk 0:00:36.4]} 35. Rb6+ {[%clk 0:00:11.4]} 35... Kf5 {[%clk
0:00:35.1]} 36. b5 {[%clk 0:00:04.5]} 36... Rh4 {[%clk 0:00:35.1]} 37. Rb8
{[%clk 0:00:04.3]} 37... Rxh2+ {[%clk 0:00:35.4]} 38. Ke3 {[%clk 0:00:04.3]}
38... Rh3+ {[%clk 0:00:35.7]} 39. Ke2 {[%clk 0:00:04.6]} 39... Rb3 {[%clk
0:00:35.6]} 40. b6 {[%clk 0:00:05.5]} 40... Ke4 {[%clk 0:00:34.3]} 41. b7 {[%clk
0:00:04.9]} 41... Rb2+ {[%clk 0:00:34.4]} 42. Kd1 {[%clk 0:00:04.9]} 42... g4
{[%clk 0:00:32.5]} 43. Kc1 {[%clk 0:00:05.1]} 43... Rb5 {[%clk 0:00:30]} 44. Kd2
{[%clk 0:00:05.3]} 44... g3 {[%clk 0:00:27.6]} 45. Ke2 {[%clk 0:00:05.7]} 45...
Rb2+ {[%clk 0:00:27.1]} 46. Kf1 {[%clk 0:00:06.1]} 46... Rb3 {[%clk 0:00:10.8]}
47. Kg2 {[%clk 0:00:06]} 47... Ke3 {[%clk 0:00:08.9]} 48. Re8 {[%clk 0:00:05.4]}
48... Rxb7 {[%clk 0:00:09]} 49. Rxe5+ {[%clk 0:00:05.5]} 49... Kf4 {[%clk
0:00:09.7]} 50. Re2 {[%clk 0:00:05.7]} 50... Rh7 {[%clk 0:00:09.8]} 51. Kg1
{[%clk 0:00:04.8]} 51... Kg4 {[%clk 0:00:06.7]} 52. Rd2 {[%clk 0:00:01.9]} 52...
Rb7 {[%clk 0:00:05.6]} 53. Rd1 {[%clk 0:00:02.5]} 53... Kh3 {[%clk 0:00:05.7]}
54. Ra1 {[%clk 0:00:03.1]} 54... Rb2 {[%clk 0:00:06.1]} 55. Rc1 {[%clk
0:00:03.3]} 55... Rh2 {[%clk 0:00:07]} 56. Ra1 {[%clk 0:00:03.1]} 56... Rg2+
{[%clk 0:00:07.9]} 57. Kh1 {[%clk 0:00:03.1]} 57... Rf2 {[%clk 0:00:08.8]} 58.
Kg1 {[%clk 0:00:03.7]} 58... Rh2 {[%clk 0:00:07.9]} 59. Rc1 {[%clk 0:00:04]}
59... Re2 {[%clk 0:00:07.8]} 60. Kh1 {[%clk 0:00:04.2]} 60... Kg4 {[%clk
0:00:07.5]} 61. Kg1 {[%clk 0:00:04.6]} 61... Kf3 {[%clk 0:00:08.1]} 62. Rc3+
{[%clk 0:00:04.9]} 62... Kg4 {[%clk 0:00:08]} 63. Rc1 {[%clk 0:00:05.5]} 63...
Kh3 {[%clk 0:00:08.3]} 64. Rd1 {[%clk 0:00:05.8]} 64... Re3 {[%clk 0:00:08.6]}
65. Rc1 {[%clk 0:00:06.3]} 65... Rf3 {[%clk 0:00:08.6]} 66. Rd1 {[%clk
0:00:06.7]} 66... Re3 {[%clk 0:00:07.9]} 67. Rc1 {[%clk 0:00:07.2]} 67... Kg4
{[%clk 0:00:08.4]} 68. Rd1 {[%clk 0:00:07.2]} 68... Re2 {[%clk 0:00:08.8]} 69.
Rc1 {[%clk 0:00:07.7]} 1/2-1/2

[Event "*** Titled Tuesday Blitz"]
[Site "Chess.com"]
[Date "2020.04.07"]
[Round "8"]
[White "OparinGrigoriy"]
[Black "Vaathi_Coming"]
[Result "1-0"]
[WhiteElo "2987"]
[BlackElo "2845"]
[TimeControl "180+1"]
[EndTime "14:35:28 PDT"]
[Termination "OparinGrigoriy won on time"]

1. Nf3 {[%clk 0:02:57.1]} 1... Nf6 {[%clk 0:02:59.6]} 2. g3 {[%clk 0:02:57.5]}
2... g6 {[%clk 0:02:59.2]} 3. Bg2 {[%clk 0:02:58]} 3... Bg7 {[%clk 0:02:59.2]}
4. c4 {[%clk 0:02:58.6]} 4... O-O {[%clk 0:02:55.2]} 5. Nc3 {[%clk 0:02:58.8]}
5... d5 {[%clk 0:02:55.2]} 6. cxd5 {[%clk 0:02:55.1]} 6... Nxd5 {[%clk
0:02:56.1]} 7. d4 {[%clk 0:02:55.9]} 7... c5 {[%clk 0:02:53.6]} 8. O-O {[%clk
0:02:44.2]} 8... cxd4 {[%clk 0:02:46.5]} 9. Nxd4 {[%clk 0:02:45.1]} 9... Nxc3
{[%clk 0:02:45]} 10. bxc3 {[%clk 0:02:45.3]} 10... Nd7 {[%clk 0:02:36.2]} 11.
Qb3 {[%clk 0:02:37.2]} 11... Nc5 {[%clk 0:02:29.5]} 12. Qb4 {[%clk 0:02:36.9]}
12... Ne6 {[%clk 0:02:21.1]} 13. Be3 {[%clk 0:02:34.9]} 13... Qb6 {[%clk
0:02:07.6]} 14. Rab1 {[%clk 0:02:07.1]} 14... Nxd4 {[%clk 0:01:49.1]} 15. cxd4
{[%clk 0:02:06.6]} 15... Qxb4 {[%clk 0:01:36.9]} 16. Rxb4 {[%clk 0:02:07.5]}
16... Rb8 {[%clk 0:01:33.1]} 17. Bf4 {[%clk 0:02:05.3]} 17... Ra8 {[%clk
0:01:29.7]} 18. Bxb7 {[%clk 0:01:55.5]} 18... a5 {[%clk 0:01:25.9]} 19. Rbb1
{[%clk 0:01:49.8]} 19... Ra7 {[%clk 0:01:19.2]} 20. Bxc8 {[%clk 0:01:45.1]}
20... Rxc8 {[%clk 0:01:20.1]} 21. e3 {[%clk 0:01:35.2]} 21... f6 {[%clk
0:01:11.1]} 22. Rfc1 {[%clk 0:01:28.7]} 22... Rxc1+ {[%clk 0:01:07.1]} 23. Rxc1
{[%clk 0:01:29.6]} 23... e5 {[%clk 0:01:06.7]} 24. dxe5 {[%clk 0:01:27.4]} 24...
fxe5 {[%clk 0:01:07.6]} 25. Bg5 {[%clk 0:01:28.1]} 25... h6 {[%clk 0:00:54.2]}
26. Bd8 {[%clk 0:01:27.6]} 26... Ra8 {[%clk 0:00:50.7]} 27. Bb6 {[%clk 0:01:25]}
27... a4 {[%clk 0:00:44.4]} 28. e4 {[%clk 0:01:22.7]} 28... a3 {[%clk
0:00:41.8]} 29. Rc3 {[%clk 0:01:20]} 29... Bf8 {[%clk 0:00:39.3]} 30. Bc5 {[%clk
0:01:15.4]} 30... Ra4 {[%clk 0:00:14.1]} 31. Bxf8 {[%clk 0:01:10.5]} 31... Kxf8
{[%clk 0:00:15]} 32. f3 {[%clk 0:01:08.8]} 32... Kf7 {[%clk 0:00:11]} 33. h4
{[%clk 0:01:06.8]} 33... Rb4 {[%clk 0:00:09]} 34. Rxa3 {[%clk 0:01:06.1]} 34...
Rb2 {[%clk 0:00:09.1]} 35. Ra6 {[%clk 0:01:04.5]} 35... h5 {[%clk 0:00:07.9]}
36. Kf1 {[%clk 0:00:50.6]} 36... Rc2 {[%clk 0:00:07.1]} 37. Ra3 {[%clk
0:00:49.4]} 37... Rb2 {[%clk 0:00:06.8]} 38. Ra5 {[%clk 0:00:48.4]} 38... Kf6
{[%clk 0:00:06.9]} 39. a4 {[%clk 0:00:47.5]} 39... Rb1+ {[%clk 0:00:04.8]} 40.
Kg2 {[%clk 0:00:47.6]} 40... Rb2+ {[%clk 0:00:04.9]} 41. Kh3 {[%clk 0:00:47.9]}
41... Rf2 {[%clk 0:00:02]} 42. Rb5 {[%clk 0:00:39.6]} 42... Rxf3 {[%clk
0:00:01.8]} 43. a5 {[%clk 0:00:40.3]} 43... Ra3 {[%clk 0:00:02]} 44. Rb6+ {[%clk
0:00:40.4]} 44... Kf7 {[%clk 0:00:02.2]} 45. a6 {[%clk 0:00:40.2]} 45... Ra2
{[%clk 0:00:02.4]} 46. Rb7+ {[%clk 0:00:37.3]} 46... Kf6 {[%clk 0:00:02]} 47. a7
{[%clk 0:00:35.2]} 47... Ke6 {[%clk 0:00:02.6]} 48. Rh7 {[%clk 0:00:30.8]} 48...
Kf6 {[%clk 0:00:02.8]} 49. Rc7 {[%clk 0:00:30.8]} 49... Ke6 {[%clk 0:00:03.1]}
50. g4 {[%clk 0:00:21.2]} 50... Ra3+ {[%clk 0:00:02.7]} 51. Kg2 {[%clk
0:00:21.5]} 51... hxg4 {[%clk 0:00:03.6]} 52. Kf2 {[%clk 0:00:22.1]} 52... Kf6
{[%clk 0:00:03.3]} 53. Ke2 {[%clk 0:00:21]} 53... g3 {[%clk 0:00:03.1]} 54. Rb7
{[%clk 0:00:17.3]} 54... Ke6 {[%clk 0:00:02.6]} 55. Rb6+ {[%clk 0:00:16.6]}
55... Kf7 {[%clk 0:00:02.6]} 56. Rb7+ {[%clk 0:00:16.4]} 56... Kf6 {[%clk
0:00:03.2]} 57. Rh7 {[%clk 0:00:16.2]} 57... Ra2+ {[%clk 0:00:02.3]} 58. Kf1
{[%clk 0:00:16.1]} 58... Ke6 {[%clk 0:00:02.7]} 59. h5 {[%clk 0:00:14.5]} 59...
Kf6 {[%clk 0:00:02.3]} 60. h6 {[%clk 0:00:14.5]} 60... Kg5 {[%clk 0:00:02.8]}
61. Kg1 {[%clk 0:00:13.5]} 61... Kg4 {[%clk 0:00:02.3]} 62. Rf7 {[%clk
0:00:12.3]} 62... Kh3 {[%clk 0:00:02.5]} 63. h7 {[%clk 0:00:12]} 63... Ra1+
{[%clk 0:00:02.5]} 64. Rf1 {[%clk 0:00:12.5]} 1-0

[Event "*** Titled Tuesday Blitz"]
[Site "Chess.com"]
[Date "2020.04.07"]
[Round "8"]
[White "ShahMatKanal"]
[Black "lelya96"]
[Result "1/2-1/2"]
[WhiteElo "2542"]
[BlackElo "2258"]
[TimeControl "180+1"]
[EndTime "14:35:29 PDT"]
[Termination "Game drawn - insufficient material"]

1. c4 {[%clk 0:03:00.9]} 1... Nf6 {[%clk 0:02:57.2]} 2. Nc3 {[%clk 0:02:59.1]}
2... e6 {[%clk 0:02:54]} 3. e4 {[%clk 0:02:58.3]} 3... d5 {[%clk 0:02:51]} 4.
cxd5 {[%clk 0:02:57.2]} 4... exd5 {[%clk 0:02:49.6]} 5. e5 {[%clk 0:02:57.4]}
5... d4 {[%clk 0:02:49.8]} 6. exf6 {[%clk 0:02:54.2]} 6... dxc3 {[%clk 0:02:49]}
7. fxg7 {[%clk 0:02:49.5]} 7... Bxg7 {[%clk 0:02:47.5]} 8. dxc3 {[%clk
0:02:40.4]} 8... Qxd1+ {[%clk 0:02:41.2]} 9. Kxd1 {[%clk 0:02:39.8]} 9... O-O
{[%clk 0:02:37.1]} 10. Be3 {[%clk 0:02:31]} 10... Bf5 {[%clk 0:02:36.4]} 11. Ne2
{[%clk 0:02:28.3]} 11... Nc6 {[%clk 0:02:30.4]} 12. Ng3 {[%clk 0:02:21.9]} 12...
Bg6 {[%clk 0:02:20.9]} 13. h4 {[%clk 0:02:08.8]} 13... Rad8+ {[%clk 0:02:19.2]}
14. Ke1 {[%clk 0:02:02.6]} 14... f5 {[%clk 0:02:17.8]} 15. Bc4+ {[%clk
0:01:57.9]} 15... Kh8 {[%clk 0:02:14.7]} 16. h5 {[%clk 0:01:56.1]} 16... Bf7
{[%clk 0:02:08.4]} 17. Bxf7 {[%clk 0:01:53.4]} 17... Rxf7 {[%clk 0:02:08.5]} 18.
h6 {[%clk 0:01:45.7]} 18... Bxc3+ {[%clk 0:01:53.3]} 19. bxc3 {[%clk 0:01:44.5]}
19... f4 {[%clk 0:01:53.7]} 20. Nf1 {[%clk 0:01:29.8]} 20... fxe3 {[%clk
0:01:49.9]} 21. Nxe3 {[%clk 0:01:30.7]} 21... Ne5 {[%clk 0:01:49.7]} 22. Ke2
{[%clk 0:00:54.6]} 22... Nd3 {[%clk 0:01:48]} 23. f3 {[%clk 0:00:21.6]} 23...
Nf4+ {[%clk 0:01:46.6]} 24. Kf2 {[%clk 0:00:21.6]} 24... Rd2+ {[%clk 0:01:42.5]}
25. Kg3 {[%clk 0:00:21.9]} 25... Ne2+ {[%clk 0:01:35.9]} 26. Kh2 {[%clk
0:00:18.5]} 26... Nxc3 {[%clk 0:01:23.7]} 27. Rac1 {[%clk 0:00:11.2]} 27... Rd3
{[%clk 0:01:12]} 28. Ng4 {[%clk 0:00:08.8]} 28... Rf5 {[%clk 0:01:00]} 29. Rhe1
{[%clk 0:00:07.1]} 29... Kg8 {[%clk 0:00:56.4]} 30. Re8+ {[%clk 0:00:05.7]}
30... Kf7 {[%clk 0:00:56.5]} 31. Rh8 {[%clk 0:00:06.2]} 31... Rh5+ {[%clk
0:00:49.2]} 32. Kg3 {[%clk 0:00:04.1]} 32... Ne2+ {[%clk 0:00:49.1]} 33. Kf2
{[%clk 0:00:04.1]} 33... Nxc1 {[%clk 0:00:49.1]} 34. Rxh7+ {[%clk 0:00:04.4]}
34... Ke6 {[%clk 0:00:44.8]} 35. Rxc7 {[%clk 0:00:03]} 35... Rd2+ {[%clk
0:00:31.8]} 36. Ke3 {[%clk 0:00:03.1]} 36... Re2+ {[%clk 0:00:31.8]} 37. Kf4
{[%clk 0:00:03.2]} 37... Nd3+ {[%clk 0:00:30.8]} 38. Kg3 {[%clk 0:00:03.4]}
38... Ne5 {[%clk 0:00:25.4]} 39. Rxb7 {[%clk 0:00:01.9]} 39... Nxg4 {[%clk
0:00:24.1]} 40. fxg4 {[%clk 0:00:02.6]} 40... Rxh6 {[%clk 0:00:23.9]} 41. Rxa7
{[%clk 0:00:02.8]} 41... Kd5 {[%clk 0:00:23]} 42. Ra5+ {[%clk 0:00:02.6]} 42...
Kd4 {[%clk 0:00:20.6]} 43. Ra4+ {[%clk 0:00:02.8]} 43... Kc3 {[%clk 0:00:19.8]}
44. g5 {[%clk 0:00:02.5]} 44... Rg6 {[%clk 0:00:18.9]} 45. Ra5 {[%clk
0:00:02.6]} 45... Kd2 {[%clk 0:00:18.7]} 46. Rd5+ {[%clk 0:00:02.1]} 46... Ke1
{[%clk 0:00:18.6]} 47. Kf3 {[%clk 0:00:01.7]} 47... Rf2+ {[%clk 0:00:18.1]} 48.
Kg3 {[%clk 0:00:02.2]} 48... Kf1 {[%clk 0:00:17.7]} 49. Re5 {[%clk 0:00:02.1]}
49... Rxg2+ {[%clk 0:00:17.6]} 50. Kh4 {[%clk 0:00:03]} 50... Rxa2 {[%clk
0:00:16.4]} 51. Kh5 {[%clk 0:00:03.2]} 51... Raa6 {[%clk 0:00:11.5]} 52. Rf5+
{[%clk 0:00:04.1]} 52... Kg2 {[%clk 0:00:11]} 53. Kg4 {[%clk 0:00:05]} 53...
Rgb6 {[%clk 0:00:09]} 54. Kh5 {[%clk 0:00:05.1]} 54... Kg3 {[%clk 0:00:08.6]}
55. Rd5 {[%clk 0:00:05.1]} 55... Rb4 {[%clk 0:00:07.9]} 56. g6 {[%clk
0:00:04.2]} 56... Rh4+ {[%clk 0:00:07.4]} 57. Kg5 {[%clk 0:00:04.7]} 57... Rg4+
{[%clk 0:00:07.9]} 58. Kh5 {[%clk 0:00:05.1]} 58... Raxg6 {[%clk 0:00:08.4]} 59.
Rd3+ {[%clk 0:00:04.5]} 59... Kh2 {[%clk 0:00:08.2]} 60. Rh3+ {[%clk 0:00:04.6]}
60... Kg2 {[%clk 0:00:07]} 61. Rh2+ {[%clk 0:00:05]} 61... Kf1 {[%clk
0:00:06.7]} 62. Rf2+ {[%clk 0:00:05.2]} 62... Kg1 {[%clk 0:00:06.1]} 63. Rf1+
{[%clk 0:00:05.6]} 63... Kg2 {[%clk 0:00:06.6]} 64. Rg1+ {[%clk 0:00:05.7]}
64... Kf2 {[%clk 0:00:06.9]} 65. Rxg4 {[%clk 0:00:05.6]} 65... Rxg4 {[%clk
0:00:07.6]} 66. Kxg4 {[%clk 0:00:05.9]} 1/2-1/2

[Event "*** Titled Tuesday Blitz"]
[Site "Chess.com"]
[Date "2020.04.07"]
[Round "8"]
[White "littleozy"]
[Black "Vadim_Biliy"]
[Result "1-0"]
[WhiteElo "2446"]
[BlackElo "2241"]
[TimeControl "180+1"]
[EndTime "14:35:31 PDT"]
[Termination "littleozy won on time"]

1. e4 {[%clk 0:03:00.9]} 1... d6 {[%clk 0:02:58.9]} 2. d4 {[%clk 0:02:59.8]}
2... Nf6 {[%clk 0:02:58.7]} 3. Nc3 {[%clk 0:02:59.8]} 3... g6 {[%clk 0:02:57.2]}
4. f4 {[%clk 0:02:59.9]} 4... Bg7 {[%clk 0:02:56.4]} 5. Nf3 {[%clk 0:03:00.5]}
5... O-O {[%clk 0:02:56.3]} 6. e5 {[%clk 0:03:00.6]} 6... dxe5 {[%clk
0:02:55.1]} 7. fxe5 {[%clk 0:03:01.5]} 7... Nd5 {[%clk 0:02:54.4]} 8. Bc4 {[%clk
0:03:01.4]} 8... c6 {[%clk 0:02:53.8]} 9. O-O {[%clk 0:03:00.3]} 9... Be6 {[%clk
0:02:52.7]} 10. Ne4 {[%clk 0:02:52.8]} 10... Nc7 {[%clk 0:02:37.8]} 11. Bd3
{[%clk 0:02:46.6]} 11... Nd7 {[%clk 0:02:20.9]} 12. c3 {[%clk 0:02:45]} 12... b5
{[%clk 0:02:12.4]} 13. Be3 {[%clk 0:02:27.1]} 13... Bd5 {[%clk 0:02:10.6]} 14.
Qd2 {[%clk 0:02:15.2]} 14... Ne6 {[%clk 0:02:05]} 15. Bh6 {[%clk 0:02:11.7]}
15... f6 {[%clk 0:02:01.7]} 16. Bxg7 {[%clk 0:02:10.2]} 16... Kxg7 {[%clk
0:02:00.9]} 17. exf6+ {[%clk 0:01:57.5]} 17... exf6 {[%clk 0:01:59.8]} 18. Rae1
{[%clk 0:01:52]} 18... Qc7 {[%clk 0:01:56.4]} 19. b3 {[%clk 0:01:45.9]} 19...
Nf4 {[%clk 0:01:45]} 20. Bc2 {[%clk 0:01:36.1]} 20... Rae8 {[%clk 0:01:41.4]}
21. g3 {[%clk 0:01:25.9]} 21... Nh5 {[%clk 0:01:36.2]} 22. Bd3 {[%clk
0:01:05.4]} 22... f5 {[%clk 0:01:34.3]} 23. Neg5 {[%clk 0:00:40.6]} 23... h6
{[%clk 0:01:31.2]} 24. c4 {[%clk 0:00:36.1]} 24... bxc4 {[%clk 0:01:25.9]} 25.
bxc4 {[%clk 0:00:35.7]} 25... hxg5 {[%clk 0:01:21.8]} 26. cxd5 {[%clk
0:00:35.1]} 26... g4 {[%clk 0:01:21.7]} 27. Ng5 {[%clk 0:00:33.2]} 27... cxd5
{[%clk 0:01:05.5]} 28. Ne6+ {[%clk 0:00:32.4]} 28... Rxe6 {[%clk 0:01:05.6]} 29.
Rxe6 {[%clk 0:00:33.3]} 29... Nxg3 {[%clk 0:01:05.8]} 30. Re7+ {[%clk
0:00:31.2]} 30... Kf6 {[%clk 0:01:04.9]} 31. Rxd7 {[%clk 0:00:31.1]} 31... Qxd7
{[%clk 0:00:59.4]} 32. hxg3 {[%clk 0:00:30.9]} 32... Rh8 {[%clk 0:00:51.2]} 33.
Qf4 {[%clk 0:00:28]} 33... Rh3 {[%clk 0:00:48.6]} 34. Qxg4 {[%clk 0:00:26.5]}
34... Qh7 {[%clk 0:00:41.4]} 35. Qf4 {[%clk 0:00:22.9]} 35... Rh1+ {[%clk
0:00:40.4]} 36. Kf2 {[%clk 0:00:23.3]} 36... Qh2+ {[%clk 0:00:40.3]} 37. Ke1
{[%clk 0:00:22.5]} 37... Rxf1+ {[%clk 0:00:36.5]} 38. Bxf1 {[%clk 0:00:20.1]}
38... Qxa2 {[%clk 0:00:34.8]} 39. Qe5+ {[%clk 0:00:19.9]} 39... Kf7 {[%clk
0:00:33.5]} 40. Qc7+ {[%clk 0:00:19.4]} 40... Kf6 {[%clk 0:00:32.1]} 41. Qe5+
{[%clk 0:00:19.1]} 41... Kf7 {[%clk 0:00:32]} 42. Be2 {[%clk 0:00:19.7]} 42...
Qa5+ {[%clk 0:00:25.6]} 43. Kf2 {[%clk 0:00:19.1]} 43... Qa2 {[%clk 0:00:23.4]}
44. Kf1 {[%clk 0:00:17.8]} 44... Qa1+ {[%clk 0:00:22.5]} 45. Kg2 {[%clk
0:00:17.6]} 45... Qa2 {[%clk 0:00:22.5]} 46. Kh3 {[%clk 0:00:17.6]} 46... Qd2
{[%clk 0:00:20.5]} 47. Bf3 {[%clk 0:00:15.9]} 47... Qh6+ {[%clk 0:00:20]} 48.
Kg2 {[%clk 0:00:15.8]} 48... Qd2+ {[%clk 0:00:19.9]} 49. Kg1 {[%clk 0:00:15.5]}
49... Qc1+ {[%clk 0:00:18.2]} 50. Kh2 {[%clk 0:00:14.8]} 50... Qd2+ {[%clk
0:00:18.3]} 51. Bg2 {[%clk 0:00:14.3]} 51... Qh6+ {[%clk 0:00:18.1]} 52. Kg1
{[%clk 0:00:14.2]} 52... Qc1+ {[%clk 0:00:17.3]} 53. Bf1 {[%clk 0:00:14.2]}
53... Qc6 {[%clk 0:00:12]} 54. Kh1 {[%clk 0:00:12]} 54... a5 {[%clk 0:00:06.5]}
55. Bg2 {[%clk 0:00:08.4]} 55... Qc1+ {[%clk 0:00:06.4]} 56. Kh2 {[%clk
0:00:08.4]} 56... Qh6+ {[%clk 0:00:06.4]} 57. Kg1 {[%clk 0:00:09.3]} 57... Qc1+
{[%clk 0:00:06.2]} 58. Bf1 {[%clk 0:00:09.6]} 58... Qc6 {[%clk 0:00:04.4]} 59.
Qh8 {[%clk 0:00:09.4]} 59... a4 {[%clk 0:00:03.1]} 60. Qh7+ {[%clk 0:00:09.5]}
60... Kf6 {[%clk 0:00:03.2]} 61. Qh8+ {[%clk 0:00:09.2]} 61... Kf7 {[%clk
0:00:03.1]} 62. Qh7+ {[%clk 0:00:08.7]} 62... Kf6 {[%clk 0:00:03.1]} 63. Qa7
{[%clk 0:00:09.6]} 1-0